bitfinex-derivatives/quotes_ETHF0:USTF0_20240920
["timestamp","ask_amount","ask_price","bid_price","bid_amount"]
[1726839281521,0.39471,2533.4,2532.9,3.60257]
[1726839281725,0.4112,2533.7,2532.9,3.2078]
[1726839281726,0.39472,2533.3,2532.9,3.2078]
[1726839282032,0.3947,2533.4,2532.9,3.2078]
[1726839282224,0.3947,2533.4,2532.9,3.60257]
[1726839282625,3.2078,2533.5,2532.9,3.60257]
[1726839282626,3.2078,2533.5,2532.9,3.2078]
[1726839282931,0.39475,2533.1,2532.9,3.2078]
[1726839283135,3.2078,2533.5,2532.9,3.2078]
[1726839283441,0.39473,2533.2,2532.9,3.2078]
[1726839283732,0.39476,2533.1,2532.9,3.2078]
[1726839283933,3.2078,2533.5,2532.9,3.2078]
[1726839284140,0.39473,2533.3,2532.9,3.2078]
[1726839284327,3.2078,2533.5,2532.9,3.2078]
[1726839284523,4.19451,2533.6,2532.9,3.2078]
[1726839284826,0.39472,2533.3,2532.9,3.60257]
[1726839285030,0.39473,2533.3,2532.9,3.60257]
[1726839285528,0.39473,2533.2,2532.9,3.2078]
[1726839285729,0.39476,2533.0,2532.9,3.2078]
[1726839286236,0.39475,2533.1,2532.9,3.2078]
[1726839286829,0.98675,2533.5,2532.9,3.2078]
[1726839287133,4.19456,2533.4,2532.9,3.60258]
[1726839287339,0.39474,2533.2,2532.9,3.60257]
[1726839287534,0.39474,2533.2,2532.9,3.2078]
[1726839287736,0.3725,2533.6,2532.9,3.2078]
[1726839287941,0.98668,2533.6,2532.9,3.2078]
[1726839288236,0.98678,2533.4,2532.9,3.2078]
[1726839288531,0.39474,2533.2,2532.9,3.60258]
[1726839288743,0.39472,2533.3,2532.9,3.2078]
[1726839288929,0.98676,2533.4,2532.9,3.2078]
[1726839289129,0.39476,2533.1,2532.9,3.2078]
[1726839289440,0.39474,2533.2,2532.9,3.2078]
[1726839289633,0.39475,2533.1,2532.9,3.2078]
[1726839290026,0.39474,2533.2,2532.9,3.60258]
[1726839290241,0.39475,2533.1,2532.9,3.2078]
[1726839290444,0.39474,2533.2,2532.9,3.60258]
[1726839290930,0.98676,2533.4,2532.9,3.60258]
[1726839291130,3.619,2533.7,2533.0,0.39476]
[1726839291131,0.98672,2533.5,2533.0,0.39476]
[1726839291329,0.39472,2533.4,2532.9,3.2078]
[1726839291533,0.39471,2533.4,2532.9,3.2078]
[1726839291740,0.4112,2533.7,2533.3,0.39471]
[1726839291943,0.39468,2533.6,2533.3,0.39471]
[1726839292143,0.39468,2533.6,2533.3,0.3947]
[1726839292344,0.39468,2533.6,2533.1,3.79]
[1726839292529,1.37232,2533.8,2533.4,0.3947]
[1726839292734,1.37232,2533.8,2533.3,0.39471]
[1726839293034,4.58012,2533.8,2533.3,0.39471]
[1726839293340,0.39469,2533.5,2533.2,0.39472]
[1726839293637,0.98664,2533.7,2533.2,0.39472]
[1726839293839,0.39469,2533.5,2533.3,0.39471]
[1726839294141,0.39469,2533.5,2533.1,3.79]
[1726839294347,0.39469,2533.5,2533.2,0.39473]
[1726839294642,0.39471,2533.4,2533.2,0.39473]
[1726839294837,0.39472,2533.3,2532.9,3.2078]
[1726839295037,0.39476,2533.1,2532.9,3.2078]
[1726839295235,0.39476,2533.0,2532.9,3.2078]
[1726839295430,0.39476,2533.0,2532.6,0.3932]
[1726839295431,0.98692,2533.0,2532.6,0.3932]
[1726839295738,0.39481,2532.7,2532.6,0.3932]
[1726839295950,0.3948,2532.8,2532.6,4.342]
[1726839296138,0.39479,2532.9,2532.6,0.3932]
[1726839296336,0.3948,2532.8,2532.6,0.3932]
[1726839296539,0.39479,2532.9,2532.6,0.3932]
[1726839296833,1.36278,2533.1,2532.7,0.39481]
[1726839296834,0.77066,2533.1,2532.7,0.39481]
[1726839297643,0.39477,2533.0,2532.7,0.39481]
[1726839297841,0.3759,2533.1,2532.7,0.39481]
[1726839298144,0.3759,2533.1,2532.6,0.3932]
[1726839298336,0.39481,2532.7,2532.5,3.2078]
[1726839298639,0.3948,2532.8,2532.5,3.2078]
[1726839298840,0.39482,2532.7,2532.5,3.2078]
[1726839299029,0.39478,2532.9,2532.5,3.2078]
[1726839299234,0.39477,2533.0,2532.5,7.39263]
[1726839299436,0.77066,2533.1,2532.6,0.39483]
[1726839299630,0.392,2533.3,2532.5,6.9978]
[1726839299631,0.39475,2533.2,2532.7,0.3948]
[1726839300036,0.3992,2533.4,2532.7,0.3948]
[1726839300239,0.39476,2533.1,2532.6,0.39482]
[1726839300434,0.3992,2533.4,2532.5,6.9978]
[1726839300739,0.39474,2533.2,2532.8,0.39479]
[1726839300944,0.39477,2533.0,2532.5,6.9978]
[1726839301337,3.2078,2533.2,2532.5,6.9978]
[1726839301640,0.3992,2533.4,2532.5,6.9978]
[1726839301841,0.39471,2533.4,2533.0,0.39476]
[1726839302046,0.3913,2533.6,2532.9,3.2078]
[1726839302240,0.39471,2533.4,2533.0,0.39476]
[1726839302439,0.39469,2533.5,2533.1,0.39474]
[1726839302638,0.39471,2533.4,2533.0,0.39476]
[1726839302839,0.3913,2533.6,2533.1,3.79]
[1726839303132,0.39466,2533.7,2533.3,0.39471]
[1726839303332,0.39465,2533.7,2533.2,0.39472]
[1726839303531,3.2078,2533.8,2533.1,4.18474]
[1726839303730,4.19444,2533.8,2533.1,3.79]
[1726839303933,0.39468,2533.6,2533.2,0.39473]
[1726839304139,0.39466,2533.7,2533.1,3.79]
[1726839304337,3.2078,2533.8,2533.2,0.39473]
[1726839304338,0.39468,2533.6,2533.2,0.39473]
[1726839304540,0.39468,2533.6,2533.1,3.79]
[1726839304740,0.39468,2533.6,2533.2,0.39473]
[1726839304948,3.2078,2533.7,2533.1,3.79]
[1726839305141,3.2078,2534.4,2533.5,3.2078]
[1726839305344,3.2078,2534.4,2533.4,3.79]
[1726839305345,0.39461,2534.0,2533.6,0.77396]
[1726839305846,0.98643,2534.3,2533.6,0.77396]
[1726839306045,0.39462,2534.0,2533.6,0.77396]
[1726839306243,7.7913,2534.6,2533.6,0.77396]
[1726839306244,3.2078,2536.2,2534.7,0.98623]
[1726839306447,3.2078,2536.2,2533.7,38.15537288]
[1726839306448,0.98575,2536.0,2535.3,3.2078]
[1726839306752,4.5928,2536.2,2535.3,3.2078]
[1726839306753,3.6071,2536.2,2535.3,3.2078]
[1726839306940,0.39439,2535.4,2535.3,3.2078]
[1726839307143,4.19367,2535.7,2534.9,3.2078]
[1726839307344,0.39445,2535.0,2534.9,3.2078]
[1726839307644,0.39445,2535.1,2534.9,3.2078]
[1726839308040,0.3831,2535.4,2534.9,3.2078]
[1726839308243,0.39445,2535.0,2534.9,3.2078]
[1726839308447,0.39451,2534.6,2534.5,3.2078]
[1726839309147,0.39451,2534.7,2534.5,3.2078]
[1726839309347,0.39449,2534.8,2534.5,3.2078]
[1726839309548,0.39445,2535.0,2534.6,0.39451]
[1726839309845,0.98588,2535.7,2534.9,3.79]
[1726839310047,0.98594,2535.6,2534.9,4.26]
[1726839310349,0.39443,2535.2,2534.9,4.65446]
[1726839310552,0.98594,2535.6,2534.9,4.65446]
[1726839310553,0.39441,2535.3,2534.9,4.26]
[1726839310852,0.7805,2535.9,2534.9,4.26]
[1726839311041,0.39434,2535.8,2535.2,4.26]
[1726839311351,0.39437,2535.6,2535.3,0.3944]
[1726839311547,0.39437,2535.6,2535.2,4.26]
[1726839311744,0.98583,2535.8,2535.0,3.2078]
[1726839312245,4.19363,2535.8,2535.0,3.2078]
[1726839312442,0.39444,2535.1,2535.0,3.2078]
[1726839312750,0.4109,2535.7,2535.0,3.2078]
[1726839312751,1.3968,2535.7,2535.0,3.60225]
[1726839312947,0.39441,2535.4,2535.0,3.2078]
[1726839313147,0.4109,2535.7,2535.0,3.2078]
[1726839313458,0.39441,2535.3,2535.0,3.2078]
[1726839313647,0.4109,2535.7,2535.0,3.60225]
[1726839313848,0.3944,2535.4,2535.0,3.60225]
[1726839314140,0.39443,2535.2,2535.0,3.2078]
[1726839314450,0.593,2537.2,2536.8,0.39417]
[1726839314751,0.593,2537.2,2535.2,1.97213]
[1726839314752,0.39413,2537.1,2536.7,4.65419]
[1726839315049,0.4041,2537.7,2537.0,3.2078]
[1726839315240,0.4041,2537.7,2537.3,3.2078]
[1726839315449,0.39408,2537.4,2537.3,3.2078]
[1726839315841,0.39414,2537.1,2537.0,3.2078]
[1726839316248,1.37243,2537.6,2537.0,3.2078]
[1726839316249,3.5951,2537.6,2537.0,3.2078]
[1726839316443,0.39413,2537.1,2537.0,3.2078]
[1726839317341,0.39412,2537.2,2537.0,3.2078]
[1726839318350,0.39413,2537.1,2537.0,3.2078]
[1726839318755,0.3873,2537.6,2537.0,3.60194]
[1726839319054,0.39408,2537.4,2537.3,3.2078]
[1726839319446,4.33488,2537.4,2537.3,3.2078]
[1726839319845,5.32009,2537.4,2537.3,3.2078]
[1726839320150,5.32009,2537.4,2536.5,0.4072]
[1726839320151,0.39414,2537.1,2537.0,3.2078]
[1726839320357,4.33574,2537.1,2537.0,3.2078]
[1726839321258,10.33574,2537.1,2536.6,3.2078]
[1726839321554,0.39419,2536.7,2536.6,3.2078]
[1726839321854,7.37967,2536.7,2536.6,3.2078]
[1726839322059,11.32207,2536.7,2536.6,3.2078]
[1726839322254,4.33659,2536.7,2536.6,3.2078]
[1726839322448,0.4096,2537.0,2536.6,3.2078]
[1726839322657,0.39419,2536.7,2536.6,3.2078]
[1726839323158,4.33659,2536.7,2536.6,3.2078]
[1726839323546,0.39419,2536.7,2536.6,3.2078]
[1726839323858,4.33659,2536.7,2536.6,3.2078]
[1726839324255,4.33659,2536.7,2536.3,3.2078]
[1726839324256,0.39423,2536.4,2536.3,3.2078]
[1726839324459,1.37982,2536.4,2536.3,3.2078]
[1726839324766,9.9424,2536.4,2536.0,3.2078]
[1726839324955,0.39427,2536.2,2536.0,3.2078]
[1726839325156,0.39428,2536.1,2536.0,3.2078]
[1726839325558,0.98562,2536.4,2536.0,3.2078]
[1726839325758,0.39428,2536.1,2536.0,3.2078]
[1726839325966,0.39427,2536.2,2536.0,3.2078]
[1726839326259,0.39428,2536.1,2536.0,3.2078]
[1726839327156,0.98557,2536.5,2536.0,3.2078]
[1726839327361,0.39427,2536.2,2536.0,3.2078]
[1726839327562,0.98552,2536.6,2536.1,0.39428]
[1726839327563,0.39424,2536.4,2536.1,0.39428]
[1726839327858,0.39424,2536.4,2536.3,3.2078]
[1726839328763,0.39423,2536.4,2536.3,3.2078]
[1726839328962,5.32222,2536.4,2536.3,3.2078]
[1726839329160,0.39429,2536.1,2536.0,3.2078]
[1726839329659,0.98554,2536.6,2536.0,3.2078]
[1726839329660,0.39427,2536.2,2536.0,3.2078]
[1726839329862,0.98548,2536.7,2536.1,4.26]
[1726839330254,4.90088,2536.8,2536.5,4.65422]
[1726839330557,0.4096,2537.0,2536.5,4.26]
[1726839330558,0.3942,2536.7,2536.5,4.26]
[1726839330760,0.39419,2536.7,2536.5,4.26]
[1726839330955,0.3942,2536.6,2536.4,0.4109]
[1726839331260,0.39423,2536.4,2536.3,3.2078]
[1726839331463,5.32222,2536.4,2536.3,3.2078]
[1726839331758,0.98565,2536.3,2535.8,7.4678]
[1726839331966,0.39429,2536.1,2536.0,6.9978]
[1726839332869,0.39427,2536.2,2536.0,6.9978]
[1726839333065,0.9855,2536.7,2536.0,6.9978]
[1726839333365,0.3934,2536.8,2536.4,3.79]
[1726839333559,0.39419,2536.7,2536.4,3.79]
[1726839333761,0.3934,2536.8,2536.4,3.79]
[1726839334067,0.39422,2536.5,2536.4,3.79]
[1726839334271,1.37978,2536.5,2536.4,3.79]
[1726839334563,3.9424,2536.5,2536.1,3.79]
[1726839334762,0.39427,2536.2,2536.1,3.79]
[1726839334961,0.39424,2536.4,2536.1,4.18427]
[1726839335269,0.98548,2536.7,2536.3,3.2078]
[1726839335464,1.37886,2536.8,2536.4,3.79]
[1726839335661,0.4096,2537.0,2536.7,6.9978]
[1726839335862,0.39416,2536.9,2536.7,6.9978]
[1726839336162,4.121,2537.3,2536.7,6.9978]
[1726839336364,0.39413,2537.1,2536.7,7.39198]
[1726839336559,4.121,2537.3,2536.7,6.9978]
[1726839336761,0.98528,2537.2,2536.7,6.9978]
[1726839336966,4.121,2537.3,2536.7,6.9978]
[1726839337165,0.39417,2536.8,2536.7,3.2078]
[1726839337469,0.39421,2536.6,2536.4,6.9978]
[1726839337668,0.9854,2536.9,2536.4,6.9978]
[1726839337867,0.98543,2536.9,2536.4,6.9978]
[1726839338061,0.39421,2536.6,2536.4,6.9978]
[1726839338262,0.39422,2536.5,2536.4,6.9978]
[1726839338466,0.39421,2536.6,2536.4,6.9978]
[1726839338663,0.98543,2536.9,2536.4,6.9978]
[1726839338963,0.39422,2536.5,2536.4,6.9978]
[1726839339860,1.37978,2536.5,2536.4,3.2078]
[1726839340167,5.32218,2536.5,2536.4,3.2078]
[1726839340668,0.39422,2536.5,2536.4,3.2078]
[1726839342373,3.2078,2537.1,2536.4,10.9402]
[1726839342673,0.98531,2537.2,2536.5,0.3942]
[1726839342674,1.36941,2537.2,2536.5,0.3942]
[1726839342967,0.39417,2536.9,2536.7,3.2078]
[1726839343162,0.39417,2536.8,2536.7,3.2078]
[1726839343562,0.39422,2536.5,2536.4,3.2078]
[1726839344669,0.98545,2536.8,2536.4,3.2078]
[1726839344974,0.39422,2536.5,2536.4,3.2078]
[1726839346879,0.3942,2536.7,2536.4,6.9978]
[1726839347177,0.98532,2537.1,2536.4,6.9978]
[1726839347178,0.98532,2537.1,2536.4,7.39202]
[1726839347372,1.36941,2537.2,2536.7,3.2078]
[1726839347682,0.39417,2536.9,2536.7,3.2078]
[1726839347869,0.39417,2536.8,2536.7,3.2078]
[1726839348377,0.9854,2536.9,2536.5,0.3816]
[1726839348566,0.98536,2537.0,2536.5,0.3816]
[1726839348767,0.39414,2537.0,2536.5,0.3816]
[1726839348966,0.98532,2537.1,2536.5,0.3816]
[1726839348967,0.3942,2536.7,2536.5,0.3816]
[1726839349167,0.3942,2536.6,2536.5,0.3816]
[1726839349369,0.3942,2536.7,2536.5,0.3816]
[1726839349683,0.3841,2537.2,2536.7,0.39418]
[1726839349973,0.39412,2537.2,2536.8,7.39197]
[1726839350181,4.121,2537.3,2537.1,6.9978]
[1726839350182,4.5151,2537.3,2537.1,6.9978]
[1726839350566,1.18557,2537.5,2537.1,6.9978]
[1726839350773,0.3941,2537.3,2537.1,6.9978]
[1726839350969,0.39408,2537.4,2537.1,6.9978]
[1726839351277,0.8083,2537.8,2537.1,3.2078]
[1726839351278,0.39411,2537.2,2537.1,3.2078]
[1726839351879,0.98513,2537.6,2537.1,3.2078]
[1726839352179,0.39411,2537.3,2537.1,3.2078]
[1726839352477,0.39411,2537.2,2537.1,3.2078]
[1726839353171,11.32099,2537.2,2537.1,3.2078]
[1726839353776,0.39411,2537.2,2537.1,3.2078]
[1726839354486,41.78516,2537.6,2537.1,3.2078]
[1726839354487,0.3941,2537.3,2537.1,3.2078]
[1726839354873,0.39411,2537.2,2537.1,3.2078]
[1726839355180,0.39408,2537.5,2537.1,3.2078]
[1726839355373,0.8083,2537.8,2537.1,3.2078]
[1726839355574,0.39408,2537.4,2537.1,3.2078]
[1726839355877,0.98513,2537.6,2537.2,0.4129]
[1726839356071,0.3941,2537.3,2537.2,0.4129]
[1726839356479,0.39408,2537.5,2537.2,0.4129]
[1726839356784,0.39408,2537.4,2537.2,0.4129]
[1726839357168,0.3941,2537.3,2537.2,0.4129]
[1726839357370,0.39409,2537.4,2537.2,0.4129]
[1726839357574,0.3941,2537.3,2537.2,0.4129]
[1726839357773,0.39411,2537.2,2537.1,6.9978]
[1726839358177,0.98513,2537.6,2537.1,6.9978]
[1726839358178,0.3941,2537.3,2537.1,6.9978]
[1726839358375,0.39411,2537.3,2537.1,6.9978]
[1726839358688,0.3941,2537.3,2537.1,6.9978]
[1726839358874,0.39411,2537.2,2537.1,6.9978]
[1726839359385,0.39411,2537.2,2537.1,3.2078]
[1726839360083,0.98518,2537.5,2537.1,3.2078]
[1726839360281,0.3941,2537.3,2537.1,3.2078]
[1726839360780,0.39411,2537.2,2537.1,3.2078]
[1726839360976,2.36467,2537.2,2537.1,3.2078]
[1726839361282,0.98528,2537.2,2536.8,3.2078]
[1726839361482,0.39415,2537.0,2536.8,3.2078]
[1726839361776,0.39413,2537.1,2536.8,3.60197]
[1726839361981,0.39415,2537.0,2536.9,3.79]
[1726839362187,8.62769929,2537.6,2536.9,3.79]
[1726839362478,3.2078,2537.7,2536.9,3.79]
[1726839362479,0.39414,2537.0,2536.9,3.79]
[1726839362674,0.39416,2536.9,2536.8,3.2078]
[1726839362874,1.37956,2536.9,2536.8,3.2078]
[1726839363273,0.39419,2536.7,2536.6,0.4129]
[1726839364081,0.39418,2536.8,2536.6,0.4129]
[1726839364278,0.39415,2537.0,2536.7,3.2078]
[1726839364482,0.39413,2537.1,2536.9,3.79]
[1726839364680,0.39414,2537.0,2536.9,3.79]
[1726839364875,3.91562929,2537.5,2537.2,0.3941]
[1726839365073,4.121,2537.6,2537.5,0.39406]
[1726839365275,3.52155929,2538.0,2537.5,3.9408]
[1726839365482,0.98506,2537.8,2537.4,6.9978]
[1726839365685,1.37923,2537.5,2537.4,3.2078]
[1726839365888,0.39411,2537.2,2537.1,3.2078]
[1726839366385,0.39414,2537.0,2536.9,7.988]
[1726839366577,0.39414,2537.0,2536.9,3.79]
[1726839366776,0.3739,2537.3,2536.9,3.79]
[1726839366984,0.39414,2537.0,2536.9,3.79]
[1726839367180,0.98535,2537.1,2536.8,3.2078]
[1726839367181,0.39416,2536.9,2536.8,3.2078]
[1726839367585,0.39414,2537.1,2536.8,6.9978]
[1726839367889,1.35917,2537.3,2536.8,6.9978]
[1726839368189,1.35917,2537.3,2536.8,7.39197]
[1726839368190,0.39413,2537.1,2536.8,7.39197]
[1726839368389,0.768,2537.3,2537.0,0.39414]
[1726839368594,0.39412,2537.2,2537.1,3.2078]
[1726839368790,0.3739,2537.3,2536.9,0.39416]
[1726839369087,4.121,2537.6,2537.1,6.9978]
[1726839369286,0.39408,2537.4,2537.2,0.3971]
[1726839369687,0.98508,2537.8,2537.1,6.9978]
[1726839369990,0.39411,2537.2,2537.1,3.2078]
[1726839370483,0.98517,2537.5,2537.1,10.9394]
[1726839370691,0.3941,2537.3,2537.1,6.9978]
[1726839370994,0.39411,2537.2,2537.1,6.9978]
[1726839371183,0.39409,2537.4,2537.1,7.39192]
[1726839371384,0.39411,2537.2,2537.1,6.9978]
[1726839371689,0.39416,2536.9,2536.8,3.6049]
[1726839371988,0.98505,2537.8,2536.8,3.2078]
[1726839371989,0.98528,2537.2,2536.8,3.2078]
[1726839372379,0.39416,2536.9,2536.8,3.2078]
[1726839372582,0.4026,2537.3,2536.8,7.39196]
[1726839372786,0.39411,2537.2,2537.1,3.2078]
[1726839372980,0.4026,2537.3,2536.8,3.79]
[1726839372981,0.39413,2537.1,2536.8,6.9978]
[1726839373187,0.4026,2537.3,2536.8,6.9978]
[1726839373188,0.39412,2537.2,2536.8,6.9978]
[1726839373490,0.39413,2537.1,2536.8,6.9978]
[1726839373685,0.39414,2537.1,2536.8,6.9978]
[1726839374198,1.38787,2537.3,2536.8,6.9978]
[1726839374491,0.39415,2537.0,2536.8,6.9978]
[1726839375284,1.37956,2536.9,2536.8,3.2078]
[1726839376199,1.37972,2536.6,2536.5,3.0078]
[1726839376491,1.37972,2536.6,2536.2,7.3753]
[1726839376492,0.39425,2536.3,2536.2,7.3753]
[1726839376691,0.39425,2536.3,2536.2,3.2078]
[1726839377190,0.3943,2536.0,2535.9,3.2078]
[1726839377396,1.38005,2536.0,2535.9,3.2078]
[1726839377787,6.309,2536.0,2535.9,3.2078]
[1726839377988,0.39437,2535.6,2535.4,3.79]
[1726839378183,0.98586,2535.8,2535.4,3.79]
[1726839378385,0.98592,2535.6,2535.1,4.1748]
[1726839378696,0.39441,2535.3,2535.1,6.9978]
[1726839378895,0.39442,2535.2,2535.1,6.9978]
[1726839379196,0.3799,2535.5,2535.1,3.79]
[1726839379393,0.3799,2535.5,2535.1,6.9978]
[1726839379594,0.39441,2535.3,2535.1,6.9978]
[1726839379790,0.3944,2535.4,2535.1,6.9978]
[1726839380190,0.39441,2535.3,2535.1,6.9978]
[1726839380691,0.3799,2535.5,2535.1,6.9978]
[1726839380897,0.39442,2535.2,2535.1,6.9978]
[1726839381290,0.3799,2535.5,2535.1,3.79]
[1726839381484,0.3944,2535.4,2535.1,6.9978]
[1726839382191,0.3799,2535.5,2535.1,6.9978]
[1726839382398,1.36587,2535.5,2535.1,6.9978]
[1726839382599,0.39442,2535.2,2535.1,3.2078]
[1726839382803,1.36587,2535.5,2534.8,6.9978]
[1726839382804,0.39446,2535.0,2534.8,6.9978]
[1726839383097,0.39447,2534.9,2534.8,6.9978]
[1726839383294,0.39447,2534.9,2534.6,0.3848]
[1726839383295,0.3945,2534.7,2534.6,0.3848]
[1726839383695,0.39451,2534.6,2534.5,6.9978]
[1726839383892,1.3808,2534.6,2534.2,7.3827]
[1726839384091,4.3446,2535.0,2534.2,7.3827]
[1726839384092,0.39455,2534.4,2534.2,7.3827]
[1726839384696,0.39455,2534.4,2534.2,3.2078]
[1726839384898,0.98629,2534.7,2534.0,0.3831]
[1726839384899,0.39456,2534.3,2534.0,0.3831]
[1726839385099,0.39456,2534.3,2533.9,6.9978]
[1726839385295,4.8781,2534.8,2533.9,6.9978]
[1726839385502,0.98629,2534.6,2533.9,6.9978]
[1726839385795,0.39461,2534.0,2533.9,3.2078]
[1726839386191,0.39461,2534.0,2533.6,3.79]
[1726839386394,0.05407759,2533.8,2533.6,3.79]
[1726839386700,0.05407759,2533.8,2533.7,3.2078]
[1726839387098,0.05407759,2533.8,2533.7,7.1542]
[1726839387803,0.3744,2534.6,2533.7,13.1542]
[1726839387992,0.3744,2534.6,2534.1,6.9978]
[1726839388197,0.76892,2534.6,2534.1,6.9978]
[1726839388597,0.3744,2534.6,2534.1,6.9978]
[1726839388900,0.39456,2534.4,2534.1,3.79]
[1726839389303,0.39453,2534.5,2534.1,3.79]
[1726839389503,0.3744,2534.6,2534.1,3.79]
[1726839389804,0.3744,2534.6,2534.1,6.9978]
[1726839390007,5.10722,2534.8,2534.1,6.9978]
[1726839390194,0.39452,2534.6,2534.1,6.9978]
[1726839390503,5.10722,2534.8,2534.1,6.9978]
[1726839390698,5.10722,2534.8,2534.1,3.79]
[1726839390895,0.3754,2534.9,2533.9,3.79]
[1726839391094,0.39458,2534.2,2533.9,3.79]
[1726839391499,0.3754,2534.9,2534.1,6.9978]
[1726839391697,0.39453,2534.6,2534.1,6.9978]
[1726839391896,0.39453,2534.6,2534.1,7.39239]
[1726839392100,0.39454,2534.5,2534.1,6.9978]
[1726839392297,0.39452,2534.6,2534.1,7.39239]
[1726839392496,0.3754,2534.9,2534.2,0.39457]
[1726839392497,0.39451,2534.7,2534.2,0.39457]
[1726839392705,0.39451,2534.7,2534.2,0.39458]
[1726839392904,0.39451,2534.7,2534.1,6.9978]
[1726839392905,0.98626,2534.7,2534.1,6.9978]
[1726839393106,0.39455,2534.4,2534.1,6.9978]
[1726839393599,0.39458,2534.2,2534.1,3.2078]
[1726839393805,0.98622,2534.8,2534.1,3.2078]
[1726839393996,0.39458,2534.2,2534.1,3.2078]
[1726839394201,0.39461,2534.0,2533.9,0.3986]
[1726839394401,0.39461,2534.0,2533.8,3.2078]
[1726839394600,0.3946,2534.1,2533.8,3.2078]
[1726839394800,0.39461,2534.0,2533.8,3.2078]
[1726839395107,0.39462,2533.9,2533.8,3.2078]
[1726839395301,0.7923,2534.3,2533.8,3.2078]
[1726839395502,1.77874,2534.3,2533.8,3.2078]
[1726839395697,1.77874,2534.3,2533.5,0.39468]
[1726839395698,0.39467,2533.6,2533.5,3.2078]
[1726839396003,1.38135,2533.6,2533.5,3.2078]
[1726839396405,0.98657,2533.9,2533.5,3.2078]
[1726839396594,0.39466,2533.7,2533.5,3.2078]
[1726839396796,0.9865,2534.1,2533.5,3.2078]
[1726839397004,0.39466,2533.7,2533.5,3.2078]
[1726839397207,0.39467,2533.6,2533.5,3.2078]
[1726839397607,1.38135,2533.6,2533.5,3.2078]
[1726839397807,2.14095,2533.6,2533.5,3.2078]
[1726839398400,6.08815,2533.6,2533.5,3.2078]
[1726839399007,5.10147,2533.6,2533.5,3.2078]
[1726839399304,0.39467,2533.7,2533.5,3.2078]
[1726839399508,0.39467,2533.6,2533.5,3.2078]
[1726839400607,0.39473,2533.3,2533.0,3.5999]
[1726839400813,0.39471,2533.4,2533.0,3.99466]
[1726839401108,0.39472,2533.3,2533.0,3.5999]
[1726839401500,0.39473,2533.2,2533.0,3.5999]
[1726839401708,3.2078,2533.1,2532.4,3.2078]
[1726839402008,3.2078,2533.1,2531.7,4.198]
[1726839402009,3.2078,2532.8,2531.9,3.2078]
[1726839402207,0.39489,2532.2,2531.9,3.2078]
[1726839402415,0.39491,2532.1,2531.9,3.2078]
[1726839402707,0.3949,2532.2,2531.9,3.2078]
[1726839402912,0.3848,2532.5,2531.9,3.2078]
[1726839403206,0.39492,2532.0,2531.9,3.2078]
[1726839403406,0.3848,2532.5,2531.9,3.2078]
[1726839403614,0.3848,2532.5,2532.2,3.2078]
[1726839403811,0.39486,2532.4,2532.2,3.2078]
[1726839404308,0.39488,2532.3,2531.9,3.2078]
[1726839404497,0.39487,2532.4,2531.9,3.60273]
[1726839404902,0.3848,2532.5,2532.0,0.39491]
[1726839404903,0.39484,2532.5,2532.0,0.39491]
[1726839405211,0.39484,2532.6,2532.1,0.3949]
[1726839405507,4.121,2532.7,2532.4,0.39486]
[1726839405809,4.121,2532.7,2532.3,3.60267]
[1726839406308,3.2078,2533.1,2532.3,6.9978]
[1726839406515,4.121,2533.2,2532.6,3.79]
[1726839406711,0.39476,2533.1,2532.6,7.39262]
[1726839406906,4.121,2533.2,2532.4,0.7802]
[1726839407213,0.39477,2533.0,2532.5,0.39484]
[1726839407508,0.39477,2533.0,2532.6,0.39482]
[1726839408303,4.121,2533.2,2532.4,0.7802]
[1726839408520,0.403,2533.5,2532.9,3.79]
[1726839408704,0.39471,2533.4,2533.0,0.3758]
[1726839409012,0.39475,2533.1,2533.0,0.3758]
[1726839409318,0.39474,2533.2,2533.0,0.3758]
[1726839409506,0.39477,2533.0,2532.8,3.2078]
[1726839409707,0.98668,2533.6,2532.8,3.2078]
[1726839409918,0.39478,2532.9,2532.8,3.2078]
[1726839410210,0.9868,2533.3,2532.8,3.2078]
[1726839410409,0.39476,2533.1,2532.8,3.2078]
[1726839410609,0.39475,2533.1,2532.8,3.2078]
[1726839410816,0.98684,2533.2,2532.8,3.2078]
[1726839411008,0.39478,2532.9,2532.8,3.2078]
[1726839411612,0.39477,2533.0,2532.8,3.2078]
[1726839411816,0.77885,2533.2,2532.8,3.60259]
[1726839412009,0.39475,2533.1,2532.8,3.2078]
[1726839412315,0.39473,2533.3,2532.8,3.2078]
[1726839412514,0.39472,2533.3,2532.9,0.39478]
[1726839412720,0.3947,2533.4,2533.1,3.2078]
[1726839412913,0.39469,2533.5,2533.1,0.39474]
[1726839413115,1.2043,2533.7,2532.9,3.79]
[1726839413420,0.39473,2533.3,2532.9,0.39477]
[1726839413814,0.39473,2533.2,2532.8,3.2078]
[1726839414016,1.2043,2533.7,2532.8,3.2078]
[1726839414219,0.39478,2532.9,2532.8,3.2078]
[1726839414413,0.98685,2533.2,2532.8,3.2078]
[1726839414610,0.39478,2532.9,2532.8,3.2078]
[1726839414810,0.98679,2533.4,2532.8,3.2078]
[1726839414811,0.39477,2533.0,2532.8,3.2078]
[1726839415015,0.39478,2532.9,2532.8,3.2078]
[1726839415215,0.39477,2533.0,2532.8,3.2078]